[Event "EICC 2021"]
[Site "Reykjavik"]
[Date "2021.09.03"]
[Round "9.34"]
[White "Basso, Pier Luigi"]
[Black "Thorfinnsson, Bragi"]
[Result "1-0"]
[ECO "E32"]
[WhiteElo "2541"]
[BlackElo "2439"]
[Annotator "ChessBase"]
[PlyCount "99"]
[EventDate "2021.08.26"]
[EventType "swiss"]
[EventCountry "ISL"]
[Tiebreak "Cut1 Buchholz"]
[SourceTitle "playchess.com"]
[Source "ChessBase"]
[SourceQuality "1"]
[TimeControl "40/5400+30:1800+30"]

1. d4 {[%emt 0:02:26]} Nf6 {[%emt 0:00:19]} 2. c4 {[%emt 0:00:06]} e6 {[%emt 0:
00:10]} 3. Nc3 {[%emt 0:00:11]} Bb4 {[%emt 0:00:26]} 4. Qc2 {[%emt 0:00:06]}
O-O {[%emt 0:03:59]} 5. e4 {[%emt 0:00:07]} d5 {[%emt 0:09:04]} 6. e5 {[%emt 0:
00:07]} Ne4 {[%emt 0:00:12]} 7. Bd3 {[%emt 0:00:24]} c5 {[%emt 0:00:29]} 8. Nf3
{[%emt 0:01:27]} cxd4 {[%emt 0:02:20]} 9. Nxd4 {[%emt 0:00:08]} Nd7 {[%emt 0:
01:55]} 10. Bf4 {[%emt 0:00:16]} Qh4 {[%emt 0:06:28]} 11. g3 {[%emt 0:00:07]}
Qh5 {[%emt 0:09:08]} 12. O-O {[%emt 0:00:15]} Bxc3 {[%emt 0:02:59]} 13. bxc3 {
[%emt 0:00:56]} g5 {[%emt 0:05:39]} 14. cxd5 {[%emt 0:02:53]} exd5 {[%emt 0:01:
09]} 15. Be3 {[%emt 0:00:09]} Nxe5 {[%emt 0:01:27]} 16. f3 {[%emt 0:00:09]}
Nxd3 {[%emt 0:07:01]} 17. Qxd3 {[%emt 0:00:19]} Nd6 {[%emt 0:02:06]} 18. g4 {
[%emt 0:01:02]} Qg6 {[%emt 0:05:04]} 19. Qxg6+ {[%emt 0:00:10]} fxg6 {[%emt 0:
00:05]} 20. Bxg5 {[%emt 0:00:21]} Re8 {[%emt 0:00:05]} 21. Bf4 {[%emt 0:03:39]}
Nc4 {[%emt 0:11:06]} 22. Nb5 {[%emt 0:02:14]} Rf8 {[%emt 0:00:26]} 23. Bh6 {
[%emt 0:19:15]} Rf7 {[%emt 0:11:05]} 24. Rae1 {[%emt 0:00:55]} Bd7 {[%emt 0:00:
00]} 25. Nc7 {[%emt 0:00:08]} Rd8 {[%emt 0:00:42]} 26. Nxd5 {[%emt 0:07:13]}
Bb5 {[%emt 0:00:08]} 27. Rd1 {[%emt 0:01:14]} Rd6 {[%emt 0:01:41]} 28. Bf4 {
[%emt 0:21:18]} Rdd7 {[%emt 0:03:54]} 29. g5 {[%emt 0:09:34]} Ba4 {[%emt 0:03:
55]} 30. Nf6+ {[%emt 0:03:00]} Rxf6 {[%emt 0:00:04]} 31. Rxd7 {[%emt 0:00:05]}
Rxf4 {[%emt 0:00:03]} 32. Rxb7 {[%emt 0:00:09]} Nd2 {[%emt 0:01:50]} 33. Rf2 {
[%emt 0:03:12]} Nxf3+ {[%emt 0:01:35]} 34. Kg2 {[%emt 0:03:08]} Bc6 {[%emt 0:
01:34]} 35. Rc7 {[%emt 0:06:54]} Rc4 {[%emt 0:03:50]} 36. Rb2 {[%emt 0:03:15]}
Nxg5+ {[%emt 0:01:05]} 37. Kf2 {[%emt 0:00:01]} Nf7 {[%emt 0:01:30]} 38. Rb8+ {
[%emt 0:01:39]} Kg7 {[%emt 0:00:05]} 39. Rb4 {[%emt 0:00:02]} Rxb4 {[%emt 0:04:
49]} 40. cxb4 {[%emt 0:00:02]} Bd5 {[%emt 0:00:10]} 41. Rxa7 {[%emt 0:32:07]}
Kf6 {[%emt 0:30:05]} 42. b5 {[%emt 0:00:47]} Ke5 {[%emt 0:01:16]} 43. Ke3 {
[%emt 0:07:02]} h5 {[%emt 0:00:00]} 44. a4 {[%emt 0:00:00]} Nd6 {[%emt 0:00:00]
} 45. Kd3 {[%emt 0:00:00]} g5 {[%emt 0:00:00]} 46. b6 {[%emt 0:00:00]} Be4+ {
[%emt 0:00:00]} 47. Ke2 {[%emt 0:00:00]} Kd4 {[%emt 0:00:00]} 48. a5 {[%emt 0:
00:04]} Kc5 {[%emt 0:06:36]} 49. Re7 {[%emt 0:00:15]} Kc6 {[%emt 0:00:00]} 50.
b7 {[%emt 0:00:56]} 1-0

[Event "EICC 2021"]
[Site "Reykjavik"]
[Date "2021.09.03"]
[Round "9.35"]
[White "Vrolijk, Liam"]
[Black "Suleymanli, Aydin"]
[Result "1/2-1/2"]
[ECO "D31"]
[WhiteElo "2480"]
[BlackElo "2536"]
[Annotator "ChessBase"]
[PlyCount "75"]
[EventDate "2021.08.26"]
[EventType "swiss"]
[EventCountry "ISL"]
[Tiebreak "Cut1 Buchholz"]
[SourceTitle "playchess.com"]
[Source "ChessBase"]
[SourceQuality "1"]
[TimeControl "40/5400+30:1800+30"]

1. d4 {[%emt 0:00:03]} d5 {[%emt 0:00:58]} 2. c4 {[%emt 0:00:09]} e6 {[%emt 0:
00:20]} 3. Nc3 {[%emt 0:00:24]} a6 {[%emt 0:00:09]} 4. cxd5 {[%emt 0:03:55]}
exd5 {[%emt 0:00:06]} 5. Bf4 {[%emt 0:01:39]} Nf6 {[%emt 0:02:15]} 6. e3 {
[%emt 0:00:50]} Bd6 {[%emt 0:00:32]} 7. Bg5 {[%emt 0:03:13]} c6 {[%emt 0:01:46]
} 8. Bd3 {[%emt 0:02:59]} Be6 {[%emt 0:01:40]} 9. Qc2 {[%emt 0:04:35]} Nbd7 {
[%emt 0:00:36]} 10. f4 {[%emt 0:09:39]} h6 {[%emt 0:01:10]} 11. Bh4 {[%emt 0:
01:54]} g5 {[%emt 0:05:48]} 12. fxg5 {[%emt 0:04:09]} Ng4 {[%emt 0:04:30]} 13.
Nf3 {[%emt 0:00:52]} Be7 {[%emt 0:02:07]} 14. Qd2 {[%emt 0:03:59]} hxg5 {
[%emt 0:01:01]} 15. Bg3 {[%emt 0:00:07]} Nh6 {[%emt 0:19:02]} 16. Rf1 {[%emt 0:
09:08]} b5 {[%emt 0:14:30]} 17. e4 {[%emt 0:06:45]} b4 {[%emt 0:00:44]} 18. Nd1
{[%emt 0:00:30]} dxe4 {[%emt 0:12:11]} 19. Bxe4 {[%emt 0:00:07]} Rc8 {[%emt 0:
00:08]} 20. Ne3 {[%emt 0:03:48]} f5 {[%emt 0:02:01]} 21. d5 {[%emt 0:10:21]}
fxe4 {[%emt 0:02:31]} 22. dxe6 {[%emt 0:00:17]} Nc5 {[%emt 0:08:27]} 23. Qxd8+
{[%emt 0:01:26]} Rxd8 {[%emt 0:00:24]} 24. Ne5 {[%emt 0:04:50]} Nxe6 {[%emt 0:
04:28]} 25. Nxc6 {[%emt 0:02:18]} Rd3 {[%emt 0:00:16]} 26. Nc4 {[%emt 0:01:15]}
Ng4 {[%emt 0:03:00]} 27. N6e5 {[%emt 0:04:20]} Nxe5 {[%emt 0:02:01]} 28. Bxe5 {
[%emt 0:01:10]} Rh6 {[%emt 0:00:47]} 29. Rd1 {[%emt 0:02:55]} Nf4 {[%emt 0:03:
35]} 30. Bxf4 {[%emt 0:01:39]} gxf4 {[%emt 0:04:12]} 31. Rxd3 {[%emt 0:02:33]}
exd3 {[%emt 0:00:13]} 32. Kd2 {[%emt 0:01:50]} Rxh2 {[%emt 0:00:15]} 33. Kxd3 {
[%emt 0:00:06]} Rxg2 {[%emt 0:00:19]} 34. Rxf4 {[%emt 0:00:07]} Kd7 {[%emt 0:
00:43]} 35. Rf5 {[%emt 0:00:08]} Kc6 {[%emt 0:00:46]} 36. Re5 {[%emt 0:01:33]}
Bc5 {[%emt 0:00:56]} 37. Na5+ {[%emt 0:00:44]} Kb6 {[%emt 0:00:30]} 38. Nc4+ {
[%emt 0:00:07]} 1/2-1/2

[Event "EICC 2021"]
[Site "Reykjavik"]
[Date "2021.09.03"]
[Round "9.36"]
[White "Kanyamarala, Tarun"]
[Black "Plat, Vojtech"]
[Result "0-1"]
[ECO "C41"]
[WhiteElo "2369"]
[BlackElo "2531"]
[Annotator "ChessBase"]
[PlyCount "238"]
[EventDate "2021.08.26"]
[EventType "swiss"]
[EventCountry "ISL"]
[Tiebreak "Cut1 Buchholz"]
[SourceTitle "playchess.com"]
[Source "ChessBase"]
[SourceQuality "1"]
[TimeControl "40/5400+30:1800+30"]

1. d4 {[%emt 0:00:03]} d6 {[%emt 0:00:04]} 2. e4 {[%emt 0:00:11]} Nf6 {[%emt 0:
00:04]} 3. Nc3 {[%emt 0:00:10]} e5 {[%emt 0:00:04]} 4. Nge2 {[%emt 0:00:15]}
exd4 {[%emt 0:00:05]} 5. Nxd4 {[%emt 0:00:07]} Be7 {[%emt 0:00:03]} 6. g3 {
[%emt 0:00:15]} O-O {[%emt 0:00:06]} 7. Bg2 {[%emt 0:00:16]} Re8 {[%emt 0:00:
17]} 8. O-O {[%emt 0:00:17]} Nbd7 {[%emt 0:00:03]} 9. h3 {[%emt 0:00:43]} Bf8 {
[%emt 0:00:11]} 10. Re1 {[%emt 0:00:17]} a5 {[%emt 0:00:31]} 11. a4 {[%emt 0:
00:28]} Nc5 {[%emt 0:00:05]} 12. Bf4 {[%emt 0:00:59]} c6 {[%emt 0:00:43]} 13.
Qd2 {[%emt 0:01:05]} Qb6 {[%emt 0:01:01]} 14. b3 {[%emt 0:00:14]} Qb4 {[%emt 0:
02:28]} 15. Rad1 {[%emt 0:01:02]} Bd7 {[%emt 0:03:52]} 16. g4 {[%emt 0:00:37]}
Rad8 {[%emt 0:01:41]} 17. Re3 {[%emt 0:01:31]} Ne6 {[%emt 0:02:03]} 18. Nxe6 {
[%emt 0:03:21]} Bxe6 {[%emt 0:00:16]} 19. Rd3 {[%emt 0:12:04]} Rd7 {[%emt 0:00:
04]} 20. Rd4 {[%emt 0:05:45]} Qc5 {[%emt 0:00:05]} 21. Be3 {[%emt 0:07:33]} Qa3
{[%emt 0:01:34]} 22. Nb1 {[%emt 0:24:59]} Qb2 {[%emt 0:00:04]} 23. Rd3 {
[%emt 0:03:28]} c5 {[%emt 0:00:08]} 24. c4 {[%emt 0:06:08]} Qxd2 {[%emt 0:00:
17]} 25. R1xd2 {[%emt 0:00:22]} Rc8 {[%emt 0:05:39]} 26. Nc3 {[%emt 0:05:57]}
Ne8 {[%emt 0:00:35]} 27. Nb5 {[%emt 0:02:50]} f6 {[%emt 0:00:25]} 28. Bf4 {
[%emt 0:01:04]} Rcd8 {[%emt 0:03:07]} 29. Bg3 {[%emt 0:00:49]} Nc7 {[%emt 0:03:
41]} 30. Nc3 {[%emt 0:01:06]} Na6 {[%emt 0:02:27]} 31. f4 {[%emt 0:02:01]} Nb4
{[%emt 0:00:13]} 32. Re3 {[%emt 0:00:16]} Bf7 {[%emt 0:00:19]} 33. Re1 {
[%emt 0:01:48]} g5 {[%emt 0:01:15]} 34. Red1 {[%emt 0:03:48]} gxf4 {[%emt 0:00:
39]} 35. Bxf4 {[%emt 0:00:52]} Nc6 {[%emt 0:00:11]} 36. Nb5 {[%emt 0:00:46]}
Ne5 {[%emt 0:00:05]} 37. Rf2 {[%emt 0:03:32]} Be6 {[%emt 0:02:19]} 38. Kh1 {
[%emt 0:00:53]} Be7 {[%emt 0:00:39]} 39. Bg3 {[%emt 0:01:00]} Kg7 {[%emt 0:00:
13]} 40. Nc3 {[%emt 0:04:06]} Rh8 {[%emt 0:04:17]} 41. Ne2 {[%emt 0:08:02]} h5
{[%emt 0:03:04]} 42. gxh5 {[%emt 0:03:52]} Bf7 {[%emt 0:02:44]} 43. Nf4 {
[%emt 0:01:25]} Bxh5 {[%emt 0:01:25]} 44. Rg1 {[%emt 0:00:56]} Bf7 {[%emt 0:04:
56]} 45. Bf1 {[%emt 0:00:55]} Kf8 {[%emt 0:00:10]} 46. Bh2 {[%emt 0:03:15]} Rd8
{[%emt 0:04:47]} 47. Be2 {[%emt 0:03:25]} Ke8 {[%emt 0:01:50]} 48. Bg4 {
[%emt 0:06:36]} Nxg4 {[%emt 0:02:51]} 49. Rxg4 {[%emt 0:00:51]} Rh7 {[%emt 0:
00:05]} 50. Rfg2 {[%emt 0:04:57]} Bf8 {[%emt 0:00:45]} 51. R2g3 {[%emt 0:00:45]
} Rd7 {[%emt 0:01:13]} 52. Kg2 {[%emt 0:02:47]} Re7 {[%emt 0:00:07]} 53. Kf3 {
[%emt 0:02:59]} Re5 {[%emt 0:00:22]} 54. Nd5 {[%emt 0:01:15]} Bxd5 {[%emt 0:01:
51]} 55. exd5 {[%emt 0:00:10]} f5 {[%emt 0:00:12]} 56. Rf4 {[%emt 0:02:00]} Kf7
{[%emt 0:01:31]} 57. Kg2 {[%emt 0:00:41]} Be7 {[%emt 0:01:16]} 58. Rf1 {
[%emt 0:00:52]} Re2+ {[%emt 0:00:33]} 59. Kh1 {[%emt 0:00:07]} Rh5 {[%emt 0:00:
24]} 60. Rgf3 {[%emt 0:00:30]} Ke8 {[%emt 0:00:32]} 61. Bg1 {[%emt 0:00:35]}
Rh7 {[%emt 0:04:45]} 62. Bf2 {[%emt 0:00:32]} Kd7 {[%emt 0:00:55]} 63. Kg2 {
[%emt 0:00:44]} Rb2 {[%emt 0:00:35]} 64. Kh1 {[%emt 0:00:44]} Bf6 {[%emt 0:00:
32]} 65. Rxf5 {[%emt 0:00:21]} Rh6 {[%emt 0:00:08]} 66. h4 Rxh4+ {[%emt 0:00:
30]} 67. Kg2 {[%emt 0:00:39]} Rh6 {[%emt 0:00:08]} 68. Rf3 {[%emt 0:00:21]} Be5
{[%emt 0:01:51]} 69. Rh1 {[%emt 0:00:57]} Rg6+ {[%emt 0:00:05]} 70. Kh3 {
[%emt 0:00:25]} Kc7 {[%emt 0:05:45]} 71. Re1 {[%emt 0:00:40]} Kb6 {[%emt 0:00:
32]} 72. Re4 {[%emt 0:00:31]} Rh6+ {[%emt 0:04:40]} 73. Kg4 {[%emt 0:00:29]}
Rh1 {[%emt 0:01:03]} 74. Bg3 {[%emt 0:00:40]} Rg2 {[%emt 0:00:51]} 75. Ree3 {
[%emt 0:00:12]} Rh8 {[%emt 0:00:34]} 76. Rd3 {[%emt 0:00:37]} Rg1 {[%emt 0:01:
30]} 77. Kf5 {[%emt 0:00:18]} Rf8+ {[%emt 0:00:48]} 78. Kg4 {[%emt 0:00:11]}
Rg8+ {[%emt 0:01:04]} 79. Kh3 {[%emt 0:00:11]} Bd4 {[%emt 0:00:03]} 80. Rf5 {
[%emt 0:00:53]} Ka7 {[%emt 0:01:25]} 81. Rff3 {[%emt 0:00:31]} Rg6 {[%emt 0:01:
23]} 82. Rf4 {[%emt 0:00:49]} Be5 {[%emt 0:01:03]} 83. Rff3 {[%emt 0:00:05]}
Rh6+ {[%emt 0:00:13]} 84. Kg4 {[%emt 0:00:21]} Rh8 {[%emt 0:02:35]} 85. Kf5 {
[%emt 0:00:18]} Rf8+ {[%emt 0:00:13]} 86. Kg4 {[%emt 0:00:08]} Rg8+ {[%emt 0:
00:14]} 87. Kh3 {[%emt 0:00:06]} Bd4 {[%emt 0:00:02]} 88. Rf4 {[%emt 0:00:53]}
Kb6 {[%emt 0:00:03]} 89. Rff3 {[%emt 0:01:28]} Rg7 {[%emt 0:00:08]} 90. Rf4 {
[%emt 0:00:28]} Kc7 {[%emt 0:00:09]} 91. Rdf3 {[%emt 0:00:31]} Rh7+ {[%emt 0:
01:15]} 92. Kg4 {[%emt 0:00:15]} Kd8 {[%emt 0:00:22]} 93. Kf5 {[%emt 0:00:56]}
Kd7 {[%emt 0:02:47]} 94. Ke4 {[%emt 0:00:38]} Re7+ {[%emt 0:00:07]} 95. Kd3 {
[%emt 0:00:22]} Be5 {[%emt 0:03:01]} 96. Rg4 {[%emt 0:00:24]} Rg2 {[%emt 0:01:
40]} 97. Re3 {[%emt 0:00:45]} Rf7 {[%emt 0:01:07]} 98. Ke4 {[%emt 0:00:31]} Bd4
{[%emt 0:00:34]} 99. Rf3 {[%emt 0:00:34]} Re2+ {[%emt 0:00:06]} 100. Kd3 {
[%emt 0:00:17]} Rxf3+ {[%emt 0:00:02]} 101. Kxe2 {[%emt 0:00:08]} Rxb3 {
[%emt 0:00:01]} 102. Rg6 {[%emt 0:00:35]} Be5 {[%emt 0:00:48]} 103. Bxe5 {
[%emt 0:00:47]} dxe5 {[%emt 0:00:01]} 104. Rg7+ {[%emt 0:00:31]} Kd6 {[%emt 0:
00:04]} 105. Rg6+ {[%emt 0:00:31]} Kc7 {[%emt 0:00:09]} 106. Kd2 {[%emt 0:00:
35]} Rb4 {[%emt 0:00:30]} 107. Kd3 {[%emt 0:00:33]} e4+ {[%emt 0:00:30]} 108.
Kxe4 {[%emt 0:00:13]} Rxc4+ {[%emt 0:00:04]} 109. Ke5 {[%emt 0:00:07]} Rxa4 {
[%emt 0:00:07]} 110. Rg7+ {[%emt 0:00:12]} Kb6 {[%emt 0:00:05]} 111. Rg6+ {
[%emt 0:01:16]} Kb5 {[%emt 0:00:05]} 112. Rg7 {[%emt 0:00:44]} b6 {[%emt 0:00:
56]} 113. d6 {[%emt 0:00:30]} Rd4 {[%emt 0:00:11]} 114. Ke6 {[%emt 0:00:16]} a4
{[%emt 0:00:26]} 115. Ra7 {[%emt 0:00:21]} c4 {[%emt 0:00:49]} 116. d7 {
[%emt 0:00:05]} c3 {[%emt 0:00:23]} 117. Ra8 {[%emt 0:00:21]} Kb4 {[%emt 0:01:
04]} 118. Ra6 {[%emt 0:00:04]} Rxd7 {[%emt 0:00:13]} 119. Kxd7 {[%emt 0:00:05]}
b5 {[%emt 0:00:03]} 0-1

[Event "EICC 2021"]
[Site "Reykjavik"]
[Date "2021.09.03"]
[Round "9.37"]
[White "Petrov, Martin"]
[Black "Lubbe, Nikolas"]
[Result "1-0"]
[ECO "B45"]
[WhiteElo "2521"]
[BlackElo "2427"]
[Annotator "ChessBase"]
[PlyCount "125"]
[EventDate "2021.08.26"]
[EventType "swiss"]
[EventCountry "ISL"]
[Tiebreak "Cut1 Buchholz"]
[SourceTitle "playchess.com"]
[Source "ChessBase"]
[SourceQuality "1"]
[TimeControl "40/5400+30:1800+30"]

1. e4 {[%emt 0:00:06]} c5 {[%emt 0:00:08]} 2. Nf3 {[%emt 0:00:05]} e6 {[%emt 0:
00:08]} 3. d4 {[%emt 0:00:05]} cxd4 {[%emt 0:00:08]} 4. Nxd4 {[%emt 0:00:04]}
Nf6 {[%emt 0:00:12]} 5. Nc3 {[%emt 0:00:05]} Nc6 {[%emt 0:00:07]} 6. a3 {
[%emt 0:00:06]} d6 {[%emt 0:18:07]} 7. Be3 {[%emt 0:00:45]} Be7 {[%emt 0:06:13]
} 8. Qe2 {[%emt 0:00:15]} Nxd4 {[%emt 0:04:01]} 9. Bxd4 {[%emt 0:00:10]} e5 {
[%emt 0:00:35]} 10. Be3 {[%emt 0:01:43]} O-O {[%emt 0:00:13]} 11. O-O-O {
[%emt 0:02:05]} Be6 {[%emt 0:04:13]} 12. Qe1 {[%emt 0:06:52]} Rc8 {[%emt 0:08:
40]} 13. Kb1 {[%emt 0:15:23]} a6 {[%emt 0:10:48]} 14. f4 {[%emt 0:07:15]} exf4
{[%emt 0:10:23]} 15. Bxf4 {[%emt 0:00:07]} Qb6 {[%emt 0:00:41]} 16. Be3 {
[%emt 0:06:54]} Qc6 {[%emt 0:01:20]} 17. Bd3 {[%emt 0:02:45]} Rfe8 {[%emt 0:07:
46]} 18. Bd4 {[%emt 0:02:39]} Nd7 {[%emt 0:03:44]} 19. Rf1 {[%emt 0:00:07]} Ne5
{[%emt 0:00:53]} 20. Qg3 {[%emt 0:03:21]} Bf8 {[%emt 0:01:18]} 21. Be2 {
[%emt 0:12:06]} b5 {[%emt 0:02:33]} 22. h4 {[%emt 0:08:54]} Qb7 {[%emt 0:04:09]
} 23. h5 {[%emt 0:01:23]} b4 {[%emt 0:02:32]} 24. axb4 {[%emt 0:00:19]} Qxb4 {
[%emt 0:00:14]} 25. Nd5 {[%emt 0:04:20]} Bxd5 {[%emt 0:00:09]} 26. exd5 {
[%emt 0:00:05]} Nc4 {[%emt 0:02:07]} 27. Bxc4 {[%emt 0:04:37]} Qxc4 {[%emt 0:
00:08]} 28. Qf2 {[%emt 0:01:59]} Rc7 {[%emt 0:01:23]} 29. Rd3 {[%emt 0:00:41]}
Rec8 {[%emt 0:04:19]} 30. h6 {[%emt 0:13:27]} Qxc2+ {[%emt 0:01:47]} 31. Qxc2 {
[%emt 0:00:03]} Rxc2 {[%emt 0:00:02]} 32. hxg7 {[%emt 0:00:08]} Be7 {[%emt 0:
01:42]} 33. Rdf3 {[%emt 0:01:30]} f6 {[%emt 0:00:40]} 34. Re1 {[%emt 0:01:31]}
R2c7 {[%emt 0:00:50]} 35. g4 {[%emt 0:01:26]} h6 {[%emt 0:02:06]} 36. Bxf6 {
[%emt 0:02:04]} Bxf6 {[%emt 0:00:25]} 37. Rxf6 {[%emt 0:00:04]} Rxg7 {[%emt 0:
00:56]} 38. Re4 {[%emt 0:00:52]} Rd8 {[%emt 0:02:28]} 39. Rxh6 {[%emt 0:00:06]}
Rg5 {[%emt 0:00:59]} 40. Rh5 {[%emt 0:00:42]} Rg7 {[%emt 0:00:39]} 41. Ra4 {
[%emt 0:31:31]} Rb8 {[%emt 0:06:29]} 42. g5 {[%emt 0:00:00]} Rb6 {[%emt 0:05:
31]} 43. Rc4 {[%emt 0:00:00]} Re7 {[%emt 0:06:45]} 44. Rh6 {[%emt 0:00:00]}
Reb7 {[%emt 0:06:54]} 45. Rc2 {[%emt 0:00:00]} Kg7 {[%emt 0:03:07]} 46. Re6 {
[%emt 0:00:00]} a5 {[%emt 0:01:42]} 47. g6 {[%emt 0:00:00]} Rb8 {[%emt 0:01:11]
} 48. Rc7+ {[%emt 0:00:37]} Kg8 {[%emt 0:01:27]} 49. Rc2 {[%emt 0:00:33]} Rf8 {
[%emt 0:00:37]} 50. Rc6 {[%emt 0:02:01]} Rf1+ {[%emt 0:00:39]} 51. Ka2 {
[%emt 0:00:06]} Rb4 {[%emt 0:00:23]} 52. Rc8+ {[%emt 0:00:34]} Kg7 {[%emt 0:00:
09]} 53. Rc7+ {[%emt 0:00:04]} Kg8 {[%emt 0:01:33]} 54. Re8+ {[%emt 0:03:41]}
Rf8 {[%emt 0:00:02]} 55. Rxf8+ {[%emt 0:00:09]} Kxf8 {[%emt 0:00:01]} 56. Rd7 {
[%emt 0:00:06]} Rg4 {[%emt 0:01:36]} 57. Rxd6 {[%emt 0:00:25]} Rg5 {[%emt 0:00:
34]} 58. Kb3 {[%emt 0:00:33]} Ke7 {[%emt 0:00:01]} 59. Re6+ {[%emt 0:00:08]}
Kd7 {[%emt 0:00:01]} 60. Kc4 {[%emt 0:00:20]} Rg2 {[%emt 0:00:30]} 61. Ra6 {
[%emt 0:01:11]} Rxb2 {[%emt 0:00:31]} 62. g7 {[%emt 0:00:16]} Rg2 {[%emt 0:00:
02]} 63. Ra8 {[%emt 0:00:10]} 1-0

[Event "EICC 2021"]
[Site "Reykjavik"]
[Date "2021.09.03"]
[Round "9.39"]
[White "Stefansson, Hannes"]
[Black "Samadov, Read"]
[Result "1/2-1/2"]
[ECO "D38"]
[WhiteElo "2519"]
[BlackElo "2360"]
[Annotator "ChessBase"]
[PlyCount "113"]
[EventDate "2021.08.26"]
[EventType "swiss"]
[EventCountry "ISL"]
[Tiebreak "Cut1 Buchholz"]
[SourceTitle "playchess.com"]
[Source "ChessBase"]
[SourceQuality "1"]
[TimeControl "40/5400+30:1800+30"]

1. d4 {[%emt 0:00:07]} Nf6 {[%emt 0:00:06]} 2. c4 {[%emt 0:00:18]} e6 {[%emt 0:
00:11]} 3. Nf3 {[%emt 0:00:15]} d5 {[%emt 0:00:26]} 4. Nc3 {[%emt 0:00:25]} Bb4
{[%emt 0:00:20]} 5. cxd5 {[%emt 0:00:33]} exd5 {[%emt 0:00:09]} 6. Bg5 {
[%emt 0:00:24]} O-O {[%emt 0:01:37]} 7. e3 {[%emt 0:01:02]} h6 {[%emt 0:00:36]}
8. Bh4 {[%emt 0:00:15]} Bf5 {[%emt 0:01:47]} 9. Be2 {[%emt 0:01:31]} Nbd7 {
[%emt 0:05:15]} 10. O-O {[%emt 0:01:40]} c6 {[%emt 0:04:52]} 11. Qb3 {[%emt 0:
01:39]} Qb6 {[%emt 0:05:30]} 12. Bg3 {[%emt 0:12:14]} Be7 {[%emt 0:03:10]} 13.
Nd2 {[%emt 0:01:22]} Rfe8 {[%emt 0:03:17]} 14. Rac1 {[%emt 0:02:36]} Rac8 {
[%emt 0:02:56]} 15. Rfd1 {[%emt 0:02:40]} Be6 {[%emt 0:10:28]} 16. a3 {[%emt 0:
05:13]} g6 {[%emt 0:03:45]} 17. h3 {[%emt 0:01:47]} Kg7 {[%emt 0:02:14]} 18.
Bh2 {[%emt 0:02:40]} h5 {[%emt 0:05:42]} 19. Bd3 {[%emt 0:04:48]} Rh8 {[%emt 0:
05:11]} 20. Ne2 {[%emt 0:09:16]} Nf8 {[%emt 0:11:05]} 21. Qc3 {[%emt 0:03:03]}
Qd8 {[%emt 0:03:32]} 22. e4 {[%emt 0:04:59]} dxe4 {[%emt 0:01:41]} 23. Nxe4 {
[%emt 0:00:12]} Nd5 {[%emt 0:04:53]} 24. Qd2 {[%emt 0:00:28]} Nd7 {[%emt 0:01:
32]} 25. Nd6 {[%emt 0:02:43]} Bxd6 {[%emt 0:01:41]} 26. Bxd6 {[%emt 0:00:06]}
h4 {[%emt 0:01:48]} 27. Nc3 {[%emt 0:02:23]} Rh5 {[%emt 0:01:20]} 28. Be2 {
[%emt 0:01:00]} Rh8 {[%emt 0:02:24]} 29. Bf3 {[%emt 0:00:45]} N7b6 {[%emt 0:05:
03]} 30. Ne4 {[%emt 0:01:04]} Bf5 {[%emt 0:01:35]} 31. Be5+ {[%emt 0:01:00]} f6
{[%emt 0:00:23]} 32. Bh2 {[%emt 0:00:11]} Bxe4 {[%emt 0:00:49]} 33. Bxe4 {
[%emt 0:00:06]} Qe8 {[%emt 0:02:02]} 34. Qd3 {[%emt 0:02:58]} Qf7 {[%emt 0:01:
06]} 35. Kh1 {[%emt 0:00:30]} Rce8 {[%emt 0:01:55]} 36. Rg1 {[%emt 0:00:35]}
Re6 {[%emt 0:04:46]} 37. Qf3 {[%emt 0:02:45]} Rh5 {[%emt 0:02:11]} 38. Bd3 {
[%emt 0:03:45]} Nc8 {[%emt 0:00:57]} 39. g4 {[%emt 0:03:17]} hxg3 {[%emt 0:00:
57]} 40. Rxg3 {[%emt 0:00:14]} g5 {[%emt 0:00:46]} 41. Rg4 {[%emt 0:31:57]}
Nce7 {[%emt 0:05:00]} 42. h4 {[%emt 0:00:00]} Ng6 {[%emt 0:02:31]} 43. Bxg6 {
[%emt 0:00:00]} Qxg6 {[%emt 0:01:22]} 44. hxg5 {[%emt 0:00:00]} fxg5 {[%emt 0:
02:24]} 45. Kg1 {[%emt 0:00:00]} Qf7 {[%emt 0:04:50]} 46. Be5+ {[%emt 0:00:00]}
Kg6 {[%emt 0:01:27]} 47. Qg2 {[%emt 0:00:00]} Qf5 {[%emt 0:01:20]} 48. Qe4 {
[%emt 0:00:00]} Qxe4 {[%emt 0:03:57]} 49. Rxe4 {[%emt 0:00:00]} Kf5 {[%emt 0:
01:13]} 50. f3 {[%emt 0:00:00]} Reh6 {[%emt 0:02:20]} 51. Kg2 {[%emt 0:00:00]}
g4 {[%emt 0:01:23]} 52. Bg3 {[%emt 0:00:00]} gxf3+ {[%emt 0:01:23]} 53. Kxf3 {
[%emt 0:00:00]} Rh1 {[%emt 0:01:43]} 54. Re5+ {[%emt 0:01:33]} Kf6 {[%emt 0:00:
26]} 55. Ree1 {[%emt 0:00:17]} Rxe1 {[%emt 0:01:30]} 56. Rxe1 {[%emt 0:00:06]}
Kf7 {[%emt 0:00:39]} 57. Be5 {[%emt 0:01:17]} 1/2-1/2